Cogmind - Beta 13 @@@ ROGUE MODE // 2024.05.08 @ 23:37:54 Player: GayPredator Result: Destroyed by G-67 Veteran with Field Laser Performance ------------- Evolutions (6) 3000 Regions Visited (15) 3000 Robots Destroyed (171) 855 Value Destroyed (9363) 9363 Prototype IDs (9) 180 Alien Tech Used (0) 0 Bonus (6183) 6183 TOTAL SCORE: 22581 Bonus ------- High Alert Combat Kills 1822 Follower Combat Kills 689 Entered Garrisons 800 Used RIF Installer 2500 Entered DSFs 500 Friendly Fire -128 Cogmind --------- Core Integrity 0/1150 Matter 201/300 Energy 295/450 System Corruption 1% Temperature Cool (0) Movement Core (100) Ox1 Location -4/Factory Parts ------- > --- POWER (2) -------- (None) > --- PROPULSION (4) --- (None) > --- UTILITY (9) ------ Energy Well > --- WEAPON (4) ------- (None) > --- INVENTORY (5) ---- High-capacity Storage Unit Peak State ------------ > --- POWER ------------ Angular Momentum Engine Angular Momentum Engine > --- PROPULSION ------- Improved Medium Treads Armored Huge Wheel > --- UTILITY ---------- Improved Cryofiber Web Advanced Heat Sink Huge Storage Unit Advanced Particle Charger Improved Medium Armor Plating Relay Coupler [NC] Relay Coupler [Grunt] > --- WEAPON ----------- Heavy Plasma Cannon Heavy Plasma Cannon Heavy Plasma Cannon Heavy Plasma Cannon > --- INVENTORY -------- Light Nuclear Core Angular Momentum Engine Fission Core Energy Well Structural Scanner Advanced Sensor Array Target Analyzer Phase Shifter Relay Coupler [Grunt] Relay Coupler [Hunter] Relay Coupler [Behemoth] Advanced Component Analysis Suite Improved Trap Extractor Force Rifle Quantum Rifle Remote Datajack Spear [Rating: 77] Favorites ----------- Power Enhanced Nuclear Core Engine Cooled Deuterium Engine Power Core Enhanced Nuclear Core Reactor Light Antimatter Reactor Propulsion Advanced Treads Treads Advanced Treads Leg Improved Carbon-fiber Leg Wheel Armored Huge Wheel Utility Large Storage Unit Device Improved Cooling System Storage Large Storage Unit Hackware Relay Coupler [Grunt] Protection Improved Medium Armor Plating Weapon Cooled Pulse Rifle Energy Gun Cooled Pulse Rifle Energy Cannon Heavy Ion Cannon Ballistic Gun Flak Gun Launcher Missile Launcher Special Weapon Remote Datajack Slashing Weapon Blade Saw Piercing Weapon Spear Build | -11 -10 -10 -10 -8 -8 -8 -8 -7 -7 -7 -7 -6 -5 -5 -4 ------- Run | Yrd Mat Min Sub Mat Gar Mat Gar Fac Gar Fac Gar Fac Fac DSF Fac Slots Evolved 12 | . . . . 4 . . . 2 . . . 2 2 . 2 Power 1 | . . . . . . . . . . . . . 1 . . Propulsion 2 | . . . . 1 . . . . . . . . 1 . . Utility 7 | . . . . 2 . . . 2 . . . 1 . . 2 Weapon 2 | . . . . 1 . . . . . . . 1 . . . Parts Attached 239 | 7 2 4 2 14 10 25 21 19 25 11 13 53 . 17 16 Power 19 | 1 . 1 . 2 2 2 . . 2 1 . 2 . 3 3 Engine 10 | 1 . . . 2 1 1 . . . 1 . 1 . 2 1 Core 6 | . . 1 . . 1 1 . . 1 . . . . 1 1 Reactor 3 | . . . . . . . . . 1 . . 1 . . 1 Propulsion 34 | 2 . . 2 3 1 8 1 3 . 2 . 4 . 4 4 Treads 10 | . . . 2 . . 3 1 3 . . . 1 . . . Leg 18 | 2 . . . 3 1 5 . . . . . . . 4 3 Wheel 6 | . . . . . . . . . . 2 . 3 . . 1 Hover . | . . . . . . . . . . . . . . . . Flight . | . . . . . . . . . . . . . . . . Utility 75 | 2 1 . . 5 1 4 4 8 8 2 4 25 . 4 7 Device 32 | 1 . . . 2 1 1 1 5 . . . 13 . 3 5 Storage 5 | 1 1 . . . . . . . . . . 1 . . 2 Processor . | . . . . . . . . . . . . . . . . Hackware 18 | . . . . 1 . . 2 3 5 1 3 3 . . . Protection 20 | . . . . 2 . 3 1 . 3 1 1 8 . 1 . Artifact . | . . . . . . . . . . . . . . . . Weapon 111 | 2 1 3 . 4 6 11 16 8 15 6 9 22 . 6 2 Energy Gun 28 | 2 1 1 . 2 3 4 5 2 . 1 . 4 . 3 . Energy Cannon 21 | . . . . . . . . 2 5 2 2 8 . 1 1 Ballistic Gun 13 | . . . . 1 . 2 4 . . . . 3 . 2 1 Ballistic Cannon . | . . . . . . . . . . . . . . . . Launcher 18 | . . 2 . 1 . 4 2 2 5 . 1 1 . . . Special Weapon 12 | . . . . . . . 2 2 2 1 3 2 . . . Impact Weapon . | . . . . . . . . . . . . . . . . Slashing Weapon 10 | . . . . . 3 1 3 . 3 . . . . . . Piercing Weapon 9 | . . . . . . . . . . 2 3 4 . . . Special Melee Weapon . | . . . . . . . . . . . . . . . . Unidentified Prototypes 7 | . . . . 1 . 3 . . . 1 . 1 . . 1 Parts Lost 54 | . . 1 3 . 1 3 3 . 5 . 1 8 . 8 21 Power 9 | . . . 1 . . 1 . . 1 . . 1 . . 5 Propulsion 12 | . . . 1 . . . . . 1 . . 2 . 2 6 Utility 18 | . . . . . . 2 1 . 2 . 1 2 . 5 5 Weapon 15 | . . 1 1 . 1 . 2 . 1 . . 3 . 1 5 Highest Loss Streak 8 | . . 1 3 . 1 1 2 . 4 . 1 4 . 8 7 To Critical Strikes . | . . . . . . . . . . . . . . . . Average Slot Usage (%) 92 | . 100 99 100 91 99 99 98 100 97 89 82 83 76 52 44 Engine 3 | . 14 5 . 8 8 8 . . . 1 7 4 5 4 2 Core 3 | . . 8 14 . . . 9 7 5 . . . . 1 2 Treads 9 | . . . . 5 . 2 26 23 22 11 . 1 5 2 . Leg 8 | . 28 28 28 18 27 24 . . . . . . . 4 14 Wheel 2 | . . . . . . . . . . 2 15 9 5 2 1 Device 8 | . 14 14 14 12 8 9 9 7 7 7 3 9 5 7 9 Storage 8 | . 14 14 14 9 9 9 9 7 7 7 7 6 5 2 4 Hackware 14 | . . . . 8 9 9 11 30 18 22 23 18 17 7 . Protection 6 | . . . . 5 9 9 6 . 9 7 7 6 5 2 . Energy Gun 11 | . 28 27 28 14 20 19 15 17 . 5 2 7 . 1 1 Energy Cannon 5 | . . . . . . . . . 14 9 9 7 17 10 . Ballistic Gun 1 | . . . . 1 . 1 3 . . . . 3 . . 5 Launcher 1 | . . . . 8 . 5 3 . 2 . . . . . . Slashing Weapon 1 | . . . . . 5 . 1 . 2 . . . . . . Piercing Weapon 1 | . . . . . . . . . . 4 3 2 . . . Naked Turns 46 | . . . . . . . . . . . . . . 46 . Heaviest Build 160 | 14 30 31 30 58 58 55 45 53 74 67 66 134 134 160 57 Greatest Support 72 | 20 20 20 40 54 54 66 66 66 66 44 38 44 28 72 72 Greatest Overweight (x) 5 | 1 1 1 2 1 1 1 . . 1 2 1 4 4 5 2 Average Overweight (x) . | . . 1 . . . . . . . 1 1 2 4 . . Largest Inventory Capacity 25 | 8 15 15 15 15 15 15 15 15 15 15 15 25 25 25 20 Average Capacity 15 | 6 11 15 15 15 15 15 15 15 15 15 15 21 25 15 5 Most Carried 20 | 5 7 10 9 15 15 15 15 15 15 15 15 20 19 19 2 Average Carried 13 | 3 5 8 7 8 14 14 14 14 14 14 14 15 19 11 1 Final Capacity 25 | 8 15 15 15 15 15 15 15 15 15 15 15 25 25 5 5 Final Carried 19 | 4 7 9 7 15 15 15 14 15 15 15 15 19 19 2 1 Class Distribution -------------------- 21% | Tank 18% | Mutant 16% | Bothacker-Tank 14% | Bothacker-Mutant 9% | Bothacker-Gunner 5% | Botlord-Mutant 5% | Botlord-Tank 3% | Scavenger-Mutant Dominant Class ---------------- Mutant | -10/Materials Mutant | -10/Mines Mutant | -10/Subcaves Skirmisher | -8/Materials Scavenger-Mutant | -8/Garrison Tank | -8/Materials Tank | -8/Garrison Bothacker-Gunner | -7/Factory Bothacker-Tank | -7/Garrison Bothacker-Mutant | -7/Factory Botlord-Mutant | -7/Garrison Botlord-Tank | -6/Factory Botlord-Tank | -5/Factory Bothacker-Gunner | -5/DSF Mutant | -4/Factory Resources | -11 -10 -10 -10 -8 -8 -8 -8 -7 -7 -7 -7 -6 -5 -5 -4 ----------- Run | Yrd Mat Min Sub Mat Gar Mat Gar Fac Gar Fac Gar Fac Fac DSF Fac Matter Collected 3759 | 243 45 65 . 197 155 384 572 156 652 65 301 447 . 217 260 Remotely . | . . . . . . . . . . . . . . . . Salvage Created 6814 | 19 80 252 . 231 925 1390 646 88 614 163 512 1052 . 468 374 Parts 343 | 3 6 7 . 17 50 76 42 1 8 12 22 63 . 19 17 Haulers Intercepted 6 | . 1 . . 1 . 3 . 1 . . . . . . . Recyclers Shooed 10 | 1 1 . . . . 1 . . . . . 2 . . 5 Parts Field Recycled . | . . . . . . . . . . . . . . . . Retrieved Matter . | . . . . . . . . . . . . . . . . Parts Self-Destructed 4 | . . . 4 . . . . . . . . . . . . Prevented . | . . . . . . . . . . . . . . . . Kills | -11 -10 -10 -10 -8 -8 -8 -8 -7 -7 -7 -7 -6 -5 -5 -4 ------- Run | Yrd Mat Min Sub Mat Gar Mat Gar Fac Gar Fac Gar Fac Fac DSF Fac Combat Hostiles Destroyed 179 | . . 5 . 7 21 27 18 1 41 4 16 22 . 7 10 Melee 2 | . . . . . . . . . . . 1 1 . . . Guns 81 | . . 4 . 6 20 14 15 1 . 1 3 10 . 2 5 Cannons 40 | . . . . . . . . . 25 3 3 4 . 5 . AOE 52 | . . 1 . 1 . 13 3 . 15 . 9 5 . . 5 Classes Destroyed 19 | 1 2 2 . 3 2 3 2 . 1 1 1 1 . . . Worker 2 | . . . . . . . . . . 1 . 1 . . . Builder 6 | . . . . 1 . . . . . . . 2 . . 3 Tunneler 2 | 1 . . . . . 1 . . . . . . . . . Hauler 6 | . 1 . . 1 . 3 . 1 . . . . . . . Recycler 5 | . . 1 . . . 3 . . . . . 1 . . . Mechanic 1 | . . . . . . 1 . . . . . . . . . Operator 1 | . . . . . . 1 . . . . . . . . . Watcher 4 | . 1 . . . . 2 . . . . . 1 . . . Swarmer 35 | . . . . 4 5 3 3 . . 2 4 8 . 2 4 Cutter 3 | . . . . . 2 . 1 . . . . . . . . Grunt 54 | . . 5 . 2 8 15 7 . 3 1 7 6 . . . Brawler 6 | . . . . . 2 2 . . . . 2 . . . . Duelist 2 | . . . . . . . 1 . . . 1 . . . . Sentry 22 | . . . . 1 4 6 5 . 3 . 1 1 . 1 . Specialist 5 | . . . . . . . . . . . 1 . . 4 . Hunter 9 | . . . . . . . . . . . . 3 . . 6 Programmer 7 | . . . . . . . 1 1 . 1 . 4 . . . Heavy 1 | . . . . . . 1 . . . . . . . . . Assembled 35 | . . . . . . . . . 35 . . . . . . Best Kill Streak 13 | 1 1 2 . 4 5 10 5 1 13 2 12 6 . 2 4 Combat Bots Only 13 | . . 2 . 4 5 7 5 1 13 2 12 5 . 2 4 Max Kills in Single Turn 5 | 1 1 1 . 3 2 5 2 1 2 1 4 3 . 2 4 Gunslinging 1 | . . . . 1 1 . . . . . . . . . . Exploded 4 | . . 1 . 1 . 4 1 . 2 . 3 2 . . 3 Melee 1 | . . . . . . . . . . . 1 1 . . . Uniques/NPCs Destroyed . | . . . . . . . . . . . . . . . . Combat | -11 -10 -10 -10 -8 -8 -8 -8 -7 -7 -7 -7 -6 -5 -5 -4 -------- Run | Yrd Mat Min Sub Mat Gar Mat Gar Fac Gar Fac Gar Fac Fac DSF Fac Hostile Shots Fired 1183 | . 5 23 9 24 79 112 52 7 178 8 72 237 . 137 240 Missed 402 | . 2 6 . 7 26 36 8 3 45 3 27 89 . 53 97 Damage Taken 12635 | . 31 305 243 144 797 1124 741 63 1295 81 530 2647 . 1745 2889 Core 2724 | . 11 78 101 7 92 300 119 . 96 16 28 407 . 306 1163 Absorbed by Shields 499 | . . . . . . . . . . . 79 . . . 420 Redirected to Shielding 189 | . . . . . . 126 61 . 2 . . . . . . Ignored by Resistances 276 | . . . . 11 60 56 . . 149 . . . . . . Regen/Repaired (Parts) 48 | . . . . . . . . . . . . 48 . . . Core Remaining (%) 55 | 100 . . 24 . . . 5 . . . 80 52 . 69 . Volleys Fired 401 | 3 5 25 1 14 39 49 43 14 70 9 26 59 . 13 31 Largest 4 | 2 2 2 2 3 3 3 3 3 3 2 3 4 . 4 3 Hottest 360 | 90 100 100 100 120 180 180 186 186 195 215 245 355 . 360 136 Shots Fired 825 | 6 10 38 2 28 97 111 89 28 131 18 42 133 . 45 47 Gun 503 | 6 10 35 2 24 95 92 74 23 . 7 10 76 . 3 46 Cannon 232 | . . . . . . . . . 108 10 22 49 . 42 1 Launcher 66 | . . 3 . 4 2 19 9 2 19 . 5 3 . . . Special 24 | . . . . . . . 6 3 4 1 5 5 . . . Kinetic 81 | . . . . . . 4 19 . . . . 15 . 2 41 Thermal 632 | 6 10 35 2 24 95 88 55 23 105 16 24 101 . 43 5 Explosive 66 | . . 3 . 4 2 19 9 2 19 . 5 3 . . . Electromagnetic 22 | . . . . . . . . . 3 1 8 9 . . 1 Robot Hit Streak 19 | 5 7 13 1 8 19 8 10 11 11 5 18 15 . 9 6 Robot Miss Streak 11 | . 2 3 1 2 4 3 3 2 3 1 1 4 . 3 11 Penetration Max 1 | . . . . . . . . . . . . . . . 1 Secondary Targets 14 | . . . . 2 8 2 . . . . . 1 . 1 . Max Gunslinging Chain 2 | . . . . 1 2 1 . . . . . 1 . 1 . Shots Hit Robots 513 | 5 7 24 1 15 64 63 53 21 62 11 31 89 . 29 38 Core Hits 349 | 2 4 13 . 13 29 57 27 5 53 6 25 53 . 14 48 Critical Kills 7 | . . . . . . . . . 1 . . 6 . . . Critical Parts Destroyed 2 | . . . . . . . . . . . . 2 . . . Critical Strikes 22 | . . 2 . 1 4 3 2 . 1 . . 9 . . . Burn 12 | . . 2 . 1 4 3 2 . . . . . . . . Meltdown 3 | . . . . . . . . . 1 . . 2 . . . Destroy 6 | . . . . . . . . . . . . 6 . . . Impale 1 | . . . . . . . . . . . . 1 . . . Melee Attacks 55 | . . . . . 12 2 5 . 4 . 8 24 . . . Impact . | . . . . . . . . . . . . . . . . Slashing 23 | . . . . . 12 2 5 . 4 . . . . . . Piercing 32 | . . . . . . . . . . . 8 24 . . . Sneak Attacks 3 | . . . . . 1 . . . . . . 2 . . . Combat Hostiles . | . . . . . . . . . . . . . . . . Follow-up Attacks . | . . . . . . . . . . . . . . . . Damage Inflicted 20206 | 60 101 437 12 596 1832 3727 1958 484 2681 295 1603 3547 . 1127 1746 Guns 8758 | 60 87 271 12 419 1750 1962 1377 481 . 98 376 1155 . 56 654 Cannons 4532 | . . . . . . . . . 1567 197 415 1282 . 1071 . Explosions 6501 | . . 162 . 177 46 1765 581 . 1114 . 748 869 . . 1039 Melee 311 | . . . . . 36 . . . . . 64 211 . . . Ramming 104 | . 14 4 . . . . . 3 . . . 30 . . 53 Kinetic 878 | . . . . . . . 139 . . . . 149 . 22 568 Thermal 13550 | 60 87 271 12 419 1750 2460 1238 481 1539 295 613 2095 . 1105 1125 Explosive 4877 | . . 162 . 177 46 1267 581 . 1114 . 748 782 . . . Electromagnetic 486 | . . . . . . . . . 28 . 178 280 . . . Impact . | . . . . . . . . . . . . . . . . Slashing 36 | . . . . . 36 . . . . . . . . . . Piercing 275 | . . . . . . . . . . . 64 211 . . . Highest Corruption 14 | . . . . . 1 1 4 2 1 1 1 14 . 1 1 Average Corruption 1 | . . . . . 1 1 1 1 1 1 1 6 . 1 1 Corruption Purged 7 | . . . . . . . . 2 . . . 5 . . . Corruption Blocked . | . . . . . . . . . . . . . . . . Effects 107 | . . . . . 11 12 13 4 18 8 7 33 . 1 . Message Errors 24 | . . . . . 1 6 3 1 3 2 2 6 . . . Matter Fused 25 | . . . . . 4 . 6 1 6 2 1 4 . 1 . Heat Flow Errors 18 | . . . . . 3 3 . . 2 2 1 7 . . . Energy Discharges 7 | . . . . . 2 . 1 . 2 . 1 1 . . . Data Loss (minor) 18 | . . . . . . 1 1 . 4 1 2 9 . . . Data Loss (major) 8 | . . . . . 1 1 2 2 1 . . 1 . . . Misfires 2 | . . . . . . . . . . 1 . 1 . . . Misdirections 1 | . . . . . . . . . . . . 1 . . . Weapon Failures 4 | . . . . . . 1 . . . . . 3 . . . Overload Shots 161 | . . . . 10 33 63 37 7 . 1 10 . . . . Effects 3 | . . . . . 2 1 . . . . . . . . . Energy Bleed 2 | . . . . . 1 1 . . . . . . . . . Heat Surge 1 | . . . . . 1 . . . . . . . . . . Overflow Damage 855 | . . . . . 4 35 78 . 121 3 25 241 . 2 346 Projectiles 177 | . . . . . . . . . 62 3 20 90 . 2 . Explosions 678 | . . . . . 4 35 78 . 59 . 5 151 . . 346 Melee . | . . . . . . . . . . . . . . . . Knockbacks 1 | . . . . . . . . . . . . 1 . . . Impact 1 | . . . . . . . . . . . . 1 . . . Kinetic . | . . . . . . . . . . . . . . . . Secondary . | . . . . . . . . . . . . . . . . Self-Inflicted Damage 1349 | . . 32 . . 40 84 53 . 120 . 62 259 . . 699 Shots 23 | . . 1 . . 1 1 1 . 5 . 2 4 . . 8 Rammed 3 | . . . . . . . . 2 . . . 1 . . . Targets Rammed 13 | . 1 1 . . . . . 2 . . . 1 . . 8 Kicked 10 | . 1 1 . . . . . . . . . . . . 8 Crushed . | . . . . . . . . . . . . . . . . Highest Temperature 783 | 80 40 246 254 126 277 227 168 158 233 234 174 517 . 783 228 Average Temperature 103 | 35 20 92 254 52 91 77 41 53 45 78 83 160 . 325 106 Received Heat Transfer 2940 | . 18 168 326 36 306 423 225 36 392 . 161 486 . 300 63 Effects 22 | . . . . . 1 . . . . . . 12 . 9 . Shutdowns 4 | . . . . . . . . . . . . 1 . 3 . Energy Bleed 3 | . . . . . 1 . . . . . . 1 . 1 . Interference 8 | . . . . . . . . . . . . 5 . 3 . Short Circuit 2 | . . . . . . . . . . . . 1 . 1 . Damage (minor) 2 | . . . . . . . . . . . . 1 . 1 . Damage (major) 3 | . . . . . . . . . . . . 3 . . . Siege Activations . | . . . . . . . . . . . . . . . . Robots Corrupted . | . . . . . . . . . . . . . . . . Combat Hostiles . | . . . . . . . . . . . . . . . . Parts Fried . | . . . . . . . . . . . . . . . . Impact Corruptions 2 | . . . . . . . . . . . . 1 . . 1 Robots Melted 4 | . . . . . 1 . . . 1 . . 2 . . . Combat Hostiles 4 | . . . . . 1 . . . 1 . . 2 . . . Parts Melted 39 | . . 3 . . 8 7 1 2 8 3 . 7 . . . Heat Transferred 19253 | 161 259 962 37 746 3104 3440 1770 783 1791 370 785 2670 . 1475 900 Parts Sabotaged . | . . . . . . . . . . . . . . . . Parts Stolen . | . . . . . . . . . . . . . . . . Parts Stripped . | . . . . . . . . . . . . . . . . Power Chain Reactions . | . . . . . . . . . . . . . . . . Alert | -11 -10 -10 -10 -8 -8 -8 -8 -7 -7 -7 -7 -6 -5 -5 -4 ------- Run | Yrd Mat Min Sub Mat Gar Mat Gar Fac Gar Fac Gar Fac Fac DSF Fac Peak Influence 1551 | 5 61 200 . 274 1394 1237 1551 814 1411 785 991 715 298 317 510 Initial 814 | . 3 23 . 24 178 679 797 814 244 740 368 514 298 211 165 Average 661 | 2 35 50 . 131 882 837 1215 471 795 658 808 569 298 263 317 Maximum Alert Level 4 | . . 1 . 1 4 4 4 3 4 3 3 3 1 1 2 Low Security (%) 13 | 100 100 97 . 58 7 . . . . . . . . . 23 Level 1 11 | . . 2 . 41 6 . . 45 14 . 11 . 100 100 56 Level 2 33 | . . . . . 24 23 . 48 30 62 9 96 . . 19 Level 3 24 | . . . . . 27 60 27 6 27 37 79 3 . . . Level 4 16 | . . . . . 34 15 72 . 27 . . . . . . Level 5 . | . . . . . . . . . . . . . . . . High Security . | . . . . . . . . . . . . . . . . Max Security . | . . . . . . . . . . . . . . . . Squads Dispatched 25 | . 1 . . 2 . 5 . 2 . 2 . 9 . 2 2 Investigation 4 | . 1 . . . . . . . . . . 2 . . 1 Extermination 6 | . . . . . . . . 2 . 1 . 3 . . . Reinforcement 11 | . . . . . . 3 . . . 1 . 4 . 2 1 Assault 1 | . . . . . . 1 . . . . . . . . . Garrison 3 | . . . . 2 . 1 . . . . . . . . . Intercept . | . . . . . . . . . . . . . . . . Searches Triggered . | . . . . . . . . . . . . . . . . Construction Impeded 1 | . . . . . . . . . . . . 1 . . . Haulers Reinforced 1 | . . . . . . . . . . . . 1 . . . Active Scanning Responses . | . . . . . . . . . . . . . . . . Cargo Convoy Interrupts . | . . . . . . . . . . . . . . . . Stealth | -11 -10 -10 -10 -8 -8 -8 -8 -7 -7 -7 -7 -6 -5 -5 -4 --------- Run | Yrd Mat Min Sub Mat Gar Mat Gar Fac Gar Fac Gar Fac Fac DSF Fac Distress Signals 4 | . . . . . . 4 . . . . . . . . . Communications Jammed . | . . . . . . . . . . . . . . . . Distress Signals . | . . . . . . . . . . . . . . . . Times Spotted 276 | . 4 6 3 9 41 37 27 5 46 9 20 33 . 16 20 Peak Tracking Total 10 | . 2 2 4 4 7 8 3 2 4 3 10 5 . 8 6 Tactical Retreats 27 | . . . . . 5 . 6 . 6 1 1 3 . 2 3 Traps | -11 -10 -10 -10 -8 -8 -8 -8 -7 -7 -7 -7 -6 -5 -5 -4 ------- Run | Yrd Mat Min Sub Mat Gar Mat Gar Fac Gar Fac Gar Fac Fac DSF Fac Traps Triggered 28 | . . . . . 5 . 4 2 1 . 5 9 . 2 . Indirectly . | . . . . . . . . . . . . . . . . Trap Hack Attempts . | . . . . . . . . . . . . . . . . Triggered . | . . . . . . . . . . . . . . . . Disarmed . | . . . . . . . . . . . . . . . . Reprogrammed . | . . . . . . . . . . . . . . . . Reused 4 | . . 2 . . 2 . . . . . . . . . . Traps Extracted . | . . . . . . . . . . . . . . . . Installed 5 | . . 2 1 . 2 . . . . . . . . . . Triggered 4 | . . 2 . . 2 . . . . . . . . . . Most Traps Carried 3 | . . 3 . . 2 . . . . . . . . . . Machines | -11 -10 -10 -10 -8 -8 -8 -8 -7 -7 -7 -7 -6 -5 -5 -4 ---------- Run | Yrd Mat Min Sub Mat Gar Mat Gar Fac Gar Fac Gar Fac Fac DSF Fac Machines Disabled 47 | . . . . 4 3 9 2 2 6 . 4 7 . 1 9 Max in Single Turn 4 | . . . . 2 1 2 1 1 1 . 1 3 . 1 4 Garrison Access 1 | . . . . . . . . . . . . 1 . . . Garrison Relay 13 | . . . . . 3 . 2 . 4 . 4 . . . . Machines Repaired . | . . . . . . . . . . . . . . . . Machines Dismantled . | . . . . . . . . . . . . . . . . Machines Sabotaged . | . . . . . . . . . . . . . . . . Overloaded Fab Kills . | . . . . . . . . . . . . . . . . Hacking | -11 -10 -10 -10 -8 -8 -8 -8 -7 -7 -7 -7 -6 -5 -5 -4 --------- Run | Yrd Mat Min Sub Mat Gar Mat Gar Fac Gar Fac Gar Fac Fac DSF Fac Machines Accessed 43 | . 3 . . 1 4 10 3 5 1 3 2 8 1 . 2 Terminals 30 | . 3 . . . 4 7 3 2 1 2 2 4 1 . 1 Fabricators 1 | . . . . . . . . . . . . 1 . . . Repair Stations 2 | . . . . . . . . . . . . 2 . . . Recycling Units 2 | . . . . . . 1 . 1 . . . . . . . Scanalyzers 3 | . . . . . . 1 . 1 . . . . . . 1 Garrison Access 5 | . . . . 1 . 1 . 1 . 1 . 1 . . . Total Hacks 115 | . 7 . . 1 10 37 7 13 3 6 4 21 1 . 5 Successful 46 | . 2 . . 1 3 15 2 7 . 3 1 8 1 . 3 Failed 69 | . 5 . . . 7 22 5 6 3 3 3 13 . . 2 Catastrophic 15 | . 1 . . . 1 2 1 1 2 1 1 3 . . 2 Database Lockouts . | . . . . . . . . . . . . . . . . Manual 41 | . 6 . . . . 18 . 7 . 4 . 6 . . . Terminals 88 | . 7 . . . 10 29 7 8 3 5 4 11 1 . 3 Fabricators 3 | . . . . . . . . . . . . 3 . . . Repair Stations 6 | . . . . . . . . . . . . 6 . . . Recycling Units 3 | . . . . . . 1 . 2 . . . . . . . Scanalyzers 10 | . . . . . . 6 . 2 . . . . . . 2 Garrison Access 5 | . . . . 1 . 1 . 1 . 1 . 1 . . . Terminal Hacks 23 | . . . . . 3 9 2 3 . . 1 2 1 . 2 Record 1 | . . . . . . . . . . . . . . . 1 Part Schematic 1 | . . . . . . 1 . . . . . . . . . Robot Analysis 1 | . . . . . . 1 . . . . . . . . . Prototype ID Bank 1 | . . . . . . 1 . . . . . . . . . Open Door 1 | . . . . . 1 . . . . . . . . . . Open DSF 2 | . . . . . . . . 1 . . . . 1 . . Emergency Access Points 3 | . . . . . 1 1 1 . . . . . . . . Terminal Index 2 | . . . . . . 1 . . . . . 1 . . . Unreport Threat 3 | . . . . . . 1 . 2 . . . . . . . Locate Traps 3 | . . . . . . 1 . . . . . 1 . . 1 Recall Reinforcements 1 | . . . . . . 1 . . . . . . . . . Zone Layout 1 | . . . . . . 1 . . . . . . . . . Patrol Navigation 1 | . . . . . 1 . . . . . . . . . . Security Stations 2 | . . . . . . . 1 . . . 1 . . . . Fabricator Hacks 2 | . . . . . . . . . . . . 2 . . . Network Status 1 | . . . . . . . . . . . . 1 . . . Build 1 | . . . . . . . . . . . . 1 . . . Repair Station Hacks 3 | . . . . . . . . . . . . 3 . . . Scan Component 2 | . . . . . . . . . . . . 2 . . . Repair 1 | . . . . . . . . . . . . 1 . . . Recycling Unit Hacks 3 | . . . . . . 1 . 2 . . . . . . . Report Inventory 2 | . . . . . . 1 . 1 . . . . . . . Retrieve Components 1 | . . . . . . . . 1 . . . . . . . Scanalyzer 3 | . . . . . . 2 . . . . . . . . 1 Insert Component 2 | . . . . . . 1 . . . . . . . . 1 Analyze 1 | . . . . . . 1 . . . . . . . . . Garrison Access Hacks 5 | . . . . 1 . 1 . 1 . 1 . 1 . . . Unlock Access 4 | . . . . 1 . 1 . 1 . 1 . . . . . Seal Access 1 | . . . . . . . . . . . . 1 . . . Unauthorized Hacks 7 | . 2 . . . . 2 . 1 . 2 . . . . . Terminals 7 | . 2 . . . . 2 . 1 . 2 . . . . . Botnet 7 | . 2 . . . . 2 . 1 . 2 . . . . . Fabricators . | . . . . . . . . . . . . . . . . Repair Stations . | . . . . . . . . . . . . . . . . Recycling Units . | . . . . . . . . . . . . . . . . Scanalyzers . | . . . . . . . . . . . . . . . . Garrison Access . | . . . . . . . . . . . . . . . . Data Cores Recovered . | . . . . . . . . . . . . . . . . Used . | . . . . . . . . . . . . . . . . Hacking Detections 30 | . 3 . . . 1 9 2 3 1 3 1 5 . . 2 Full Trace Events 7 | . 1 . . . 1 . 1 . 1 . 1 1 . . 1 Feedback Events . | . . . . . . . . . . . . . . . . Feedback Blocked . | . . . . . . . . . . . . . . . . Robot Schematics Acquired . | . . . . . . . . . . . . . . . . Robots Built . | . . . . . . . . . . . . . . . . Authchips . | . . . . . . . . . . . . . . . . Time . | . . . . . . . . . . . . . . . . Total Robot Build Rating . | . . . . . . . . . . . . . . . . Part Schematics Acquired 2 | . . . . . . 2 . . . . . . . . . Parts Built 1 | . . . . . . . . . . . . 1 . . . Authchips . | . . . . . . . . . . . . . . . . Time 64 | . . . . . . . . . . . . 64 . . . Total Part Build Rating 8 | . . . . . . . . . . . . 8 . . . Parts Repaired 1 | . . . . . . . . . . . . 1 . . . Time 61 | . . . . . . . . . . . . 61 . . . Parts Recycled . | . . . . . . . . . . . . . . . . Recycled Matter . | . . . . . . . . . . . . . . . . Retrieved Matter . | . . . . . . . . . . . . . . . . Retrieved Components 1 | . . . . . . . . 1 . . . . . . . Parts Scanalyzed 2 | . . . . . . 1 . . . . . . . . 1 Part Schematics Acquired 1 | . . . . . . 1 . . . . . . . . . Parts Damaged 1 | . . . . . . . . . . . . . . . 1 Bothacking | -11 -10 -10 -10 -8 -8 -8 -8 -7 -7 -7 -7 -6 -5 -5 -4 ------------ Run | Yrd Mat Min Sub Mat Gar Mat Gar Fac Gar Fac Gar Fac Fac DSF Fac Used RIF Installer 5 | . . . . . 1 . 1 . 1 . 2 . . . . Threat Obfuscator 1 | . . . . . . . . . . . 1 . . . . Zone Cloak 1 | . . . . . . . . . . . 1 . . . . Watcher Feeds 1 | . . . . . . . 1 . . . . . . . . Structural Interface 1 | . . . . . . . . . 1 . . . . . . Robots Hacked 18 | . . . . . . . 4 3 2 1 4 4 . . . Non-combat 3 | . . . . . . . . 2 . . . 1 . . . Combat 15 | . . . . . . . 4 1 2 1 4 3 . . . Robot Hacks Applied 19 | . . . . . . . 4 3 3 1 4 4 . . . generate_echo 1 | . . . . . . . . 1 . . . . . . . map_walls 1 | . . . . . . . . 1 . . . . . . . drop_inventory 1 | . . . . . . . . . . . . 1 . . . overload_power 1 | . . . . . . . 1 . . . . . . . . disable_weapons 2 | . . . . . . . . . 1 . 1 . . . . reboot_system 2 | . . . . . . . . . . . 2 . . . . formatsys_high 11 | . . . . . . . 3 1 2 1 1 3 . . . Relay Couplers Released 61 | . . . . . 13 . 13 . 18 . 17 . . . . Machine Destruction 57 | . . . . . 13 . 9 . 18 . 17 . . . . Programmers 4 | . . . . . . . 4 . . . . . . . . Attached 15 | . . . . . . . 2 2 5 1 3 2 . . . Fabnet Peak Effective % . | . . . . . . . . . . . . . . . . Robots Rewired 11 | . . . . . 5 . . . 3 . 3 . . . . Allies Hacked 1 | . . . . . . . . . . . . 1 . . . Hacks Repelled . | . . . . . . . . . . . . . . . . Allies | -11 -10 -10 -10 -8 -8 -8 -8 -7 -7 -7 -7 -6 -5 -5 -4 -------- Run | Yrd Mat Min Sub Mat Gar Mat Gar Fac Gar Fac Gar Fac Fac DSF Fac Total Allies 26 | . . 2 . . 5 . 3 1 5 1 6 3 . . . Largest Group 5 | . . 2 2 1 5 3 1 2 3 1 3 3 2 2 . Highest-Rated Group 157 | . . 45 49 18 118 63 16 48 36 30 157 105 64 64 . Highest-Rated Ally 95 | . . 31 31 18 39 31 16 32 32 30 95 41 32 32 . Total Orders 1 | . . . . . . . . . . . . 1 . . . STAY 1 | . . . . . . . . . . . . 1 . . . Ally Attacks 174 | . . . 13 2 60 6 2 15 35 1 32 1 . 7 . Total Damage 3046 | . . . 227 14 717 100 15 293 403 . 1021 46 . 210 . Kills 30 | . . . 4 . 12 . . 3 4 . 6 . . 1 . Allies Corrupted 3 | . . . . . . . . 1 . 1 . . . 1 . Allies Melted 1 | . . . . . . . . . . . 1 . . . . Intel | -11 -10 -10 -10 -8 -8 -8 -8 -7 -7 -7 -7 -6 -5 -5 -4 ------- Run | Yrd Mat Min Sub Mat Gar Mat Gar Fac Gar Fac Gar Fac Fac DSF Fac Robot Analysis Total 1 | . . . . . . 1 . . . . . . . . . Derelict Logs Recovered 1 | . . 1 . . . . . . . . . . . . . Drone Launches . | . . . . . . . . . . . . . . . . Drone Recoveries . | . . . . . . . . . . . . . . . . Exploration | -11 -10 -10 -10 -8 -8 -8 -8 -7 -7 -7 -7 -6 -5 -5 -4 ------------- Run | Yrd Mat Min Sub Mat Gar Mat Gar Fac Gar Fac Gar Fac Fac DSF Fac Turns Passed 12396 | 80 313 993 91 268 1358 991 1215 831 1925 1074 861 1821 13 195 367 Spaces Moved 6593 | 50 188 368 42 126 729 411 704 515 944 548 618 985 9 110 246 Core 82 | 10 . . . . . . . . . . . . . 57 15 Treads 2633 | . . . 2 43 . 63 704 515 944 362 . . . . . Legs 2054 | 40 188 368 40 83 729 348 . . . . . . . 27 231 Wheels 1824 | . . . . . . . . . . 186 618 985 9 26 . Hover . | . . . . . . . . . . . . . . . . Flight . | . . . . . . . . . . . . . . . . Fastest Speed 50 | 50 120 190 160 120 120 145 145 145 145 105 105 105 160 50 90 Average Speed 147 | 109 149 190 190 151 137 180 145 145 170 186 105 130 160 86 96 Slowest Speed 260 | 120 190 190 260 190 190 225 145 145 225 225 105 160 160 175 180 Overloaded Moves . | . . . . . . . . . . . . . . . . Propulsion Burnouts . | . . . . . . . . . . . . . . . . Robots Hopped . | . . . . . . . . . . . . . . . . Cave-ins Triggered 1 | . . . . . . . . . . . . 1 . . . Exploration Rate (%) 45 | 4 47 90 3 15 72 60 73 19 72 16 75 35 . 89 7 Regions Visited 15 Branch Regions 2 Pre-discovered Areas . | . . . . . . . . . . . . . . . . Known Exits Taken 5 | . . . . 1 . 1 . 1 . 1 . . 1 . . Unknown Exits Taken 5 | 1 1 1 1 . . . . . . . . 1 . . . Scrap Searched 1 | . . 1 . . . . . . . . . . . . . Spaces Dug 41 | . . . . . . . . . 16 2 . 23 . . . Terrain Destroyed 636 | . . 24 . 10 12 181 48 19 158 4 17 72 . 9 82 Melee 7 | . . . . . . . . . . . . 7 . . . Projectile 55 | . . . . 1 3 12 8 1 8 4 1 7 . 9 1 AOE 574 | . . 24 . 9 9 169 40 18 150 . 16 58 . . 81 Terrain Rammed . | . . . . . . . . . . . . . . . . Walls Destroyed . | . . . . . . . . . . . . . . . . Machines Disabled . | . . . . . . . . . . . . . . . . Actions | -11 -10 -10 -10 -8 -8 -8 -8 -7 -7 -7 -7 -6 -5 -5 -4 --------- Run | Yrd Mat Min Sub Mat Gar Mat Gar Fac Gar Fac Gar Fac Fac DSF Fac Total 8425 | 67 209 623 51 175 978 555 811 572 1130 587 779 1377 8 177 326 Wait 647 | 1 7 216 5 7 50 38 22 4 27 3 17 216 . 12 22 Move 6578 | 49 187 367 41 125 727 411 703 515 942 547 617 984 8 109 246 Hop . | . . . . . . . . . . . . . . . . Pick Up 94 | 7 4 5 . 7 8 8 7 7 9 7 5 15 . 4 1 Fast Attach 97 | 4 1 . . 10 2 15 5 5 7 3 3 23 . 7 12 Attach 59 | 3 . 1 1 3 1 2 5 4 5 3 2 18 . 9 2 Detach 18 | . . . . 4 1 . 1 1 . . . 9 . 1 1 Swap 84 | . 1 3 1 1 7 9 11 10 13 5 8 12 . 1 2 Drop 116 | . 3 3 1 4 10 21 9 10 14 10 8 16 . 6 1 Fire 401 | 3 5 25 1 14 39 49 43 14 70 9 26 59 . 13 31 Melee 55 | . . . . . 12 2 5 . 4 . 8 24 . . . Ram 1 | . . . . . . . . . . . . 1 . . . Kick 10 | . 1 1 . . . . . . . . . . . . 8 Crush 2 | . . . . . . . . 2 . . . . . . . Escape Stasis 64 | . . . . . 15 . . . 2 . 32 . . 15 . Rewire 194 | . . . . . 104 . . . 37 . 53 . . . . Trap 5 | . . 2 1 . 2 . . . . . . . . . . Miscellaneous . | . . . . . . . . . . . . . . . . Route ------- -11/Scrapyard -10/Materials (discovered 3 exits: [*Mat] / [*Min x2]) -10/Mines (discovered 2 exits: [*Mat] / [*Sub]) -10/Subcaves -8/Materials (discovered 2 exits: Fac / Gar) -8/Garrison (discovered 4 exits: *Fac x3 / *Mat) -8/Materials (discovered 4 exits: *Fac x3 / Gar) -8/Garrison (discovered 3 exits: *Fac x3) -7/Factory -7/Garrison (discovered 3 exits: *Fac x3) -7/Factory -7/Garrison (discovered 2 exits: *Fac x2) -6/Factory (discovered 4 exits: *Fac x2 / *Low x2) -5/Factory -5/DSF -4/Factory History --------- Turn | Location | Event 9 | -11/Scrapyard | Discovered new exit (range 16) 81 | -11/Scrapyard | Entered Materials 86 | -10/Materials | Discovered new exit (range 15) 257 | -10/Materials | Discovered new exit (range 16) 317 | -10/Materials | Build established: Mutant 361 | -10/Materials | Discovered new exit (range 7) 394 | -10/Materials | Entered Mines 624 | -10/Mines | Found a hidden stash of uninstalled traps 862 | -10/Mines | Learned 4 Materials zone layouts 868 | -10/Mines | Discovered new exit (range 7) 1375 | -10/Mines | Discovered new exit (range 4) 1387 | -10/Mines | Entered Subcaves 1387 | -10/Subcaves | Accompanied by 2 allies 1388 | -10/Subcaves | Shifting Twisted Machinery released Sub. Beam Cannon 1406 | -10/Subcaves | Led the pair of lost Derelicts to an unsafe place 1460 | -10/Subcaves | Discovered new exit (range 7) 1472 | -10/Subcaves | Core integrity fell below 50% 1478 | -10/Subcaves | Entered Materials 1478 | -8/Materials | Accompanied by 1 ally 1478 | -8/Materials | Evolved 4 slots: Propulsion x1, Utility x2, Weapon x1 1479 | -8/Materials | Identified exit to Factory 1502 | -8/Materials | Lost 3 parts (1p1n1w) 1611 | -8/Materials | Garrison activated, responded to threat 1691 | -8/Materials | Identified exit to Garrison 1713 | -8/Materials | Garrison activated, responded to threat 1746 | -8/Materials | Entered Garrison 1834 | -8/Garrison | Triggered checkpoint 1880 | -8/Garrison | Triggered checkpoint 1912 | -8/Garrison | Installed Relay Interface Framework 1970 | -8/Garrison | Build established: Tank 1976 | -8/Garrison | Triggered checkpoint 2078 | -8/Garrison | Triggered checkpoint 2104 | -8/Garrison | Garrison Relay disabled 2131 | -8/Garrison | Discovered exit to Factory (range 13) 2266 | -8/Garrison | Triggered checkpoint 2330 | -8/Garrison | Triggered checkpoint 2338 | -8/Garrison | Discovered exit to Factory (range 10) 2367 | -8/Garrison | Discovered new exit (range 5) 2398 | -8/Garrison | Build established: Mutant 2526 | -8/Garrison | Triggered checkpoint 2547 | -8/Garrison | Garrison Relay disabled 2636 | -8/Garrison | Triggered checkpoint 2684 | -8/Garrison | Triggered checkpoint 2737 | -8/Garrison | Garrison Relay disabled 2860 | -8/Garrison | Discovered exit to Factory (range 9) 3029 | -8/Garrison | Build established: Scavenger-Mutant 3104 | -8/Garrison | Entered Materials 3104 | -8/Materials | Accompanied by 3 allies 3283 | -8/Materials | Lost 3 allies 3385 | -8/Materials | Discovered exit to Factory (range 4) 3560 | -8/Materials | Build established: Tank 3730 | -8/Materials | Discovered exit to Factory (range 8) 3846 | -8/Materials | Garrison activated, responded to threat 3904 | -8/Materials | First assault squad dispatched 3939 | -8/Materials | Core integrity fell below 50% 3980 | -8/Materials | Destroyed 7 combat bots 4085 | -8/Materials | Discovered exit to Factory (range 16) 4095 | -8/Materials | Identified exit to Garrison 4095 | -8/Materials | Entered Garrison 4153 | -8/Garrison | Triggered checkpoint 4303 | -8/Garrison | Triggered checkpoint 4321 | -8/Garrison | Core integrity fell below 20% 4387 | -8/Garrison | Triggered checkpoint 4418 | -8/Garrison | Learned Factory security intel 4430 | -8/Garrison | Garrison Relay disabled 4463 | -8/Garrison | Discovered exit to Factory (range 12) 4969 | -8/Garrison | Triggered checkpoint 5007 | -8/Garrison | Garrison Relay disabled 5060 | -8/Garrison | Discovered exit to Factory (range 9) 5214 | -8/Garrison | Expanded RIF knowledge: Watcher Feeds 5259 | -8/Garrison | Discovered exit to Factory (range 10) 5310 | -8/Garrison | Entered Factory 5310 | -7/Factory | Accompanied by 1 ally 5310 | -7/Factory | Evolved 2 slots: Utility x2 5539 | -7/Factory | Build established: Bothacker-Gunner 6141 | -7/Factory | Identified exit to Garrison 6141 | -7/Factory | Entered Garrison 6141 | -7/Garrison | Accompanied by 1 ally 6329 | -7/Garrison | Triggered checkpoint 6389 | -7/Garrison | Triggered checkpoint 6398 | -7/Garrison | Assembled breached garrison interior 6447 | -7/Garrison | Build established: Bothacker-Tank 6651 | -7/Garrison | Destroyed 12 combat bots 6691 | -7/Garrison | Garrison Relay disabled 6859 | -7/Garrison | Destroyed 13 combat bots 6925 | -7/Garrison | Lost 4 parts (1p2u1w) 6942 | -7/Garrison | Discovered new exit (range 8) 7016 | -7/Garrison | Garrison Relay disabled 7051 | -7/Garrison | Discovered new exit (range 14) 7222 | -7/Garrison | Discovered new exit (range 12) 7315 | -7/Garrison | Build established: Bothacker-Mutant 7425 | -7/Garrison | Expanded RIF knowledge: Structural Interface 7537 | -7/Garrison | Garrison Relay disabled 8066 | -7/Garrison | Entered Factory 8266 | -7/Factory | Build established: Bothacker-Tank 8627 | -7/Factory | Build established: Bothacker-Mutant 9139 | -7/Factory | Identified exit to Garrison 9140 | -7/Factory | Entered Garrison 9152 | -7/Garrison | Found embedded Infiltrators 9235 | -7/Garrison | Garrison Relay disabled 9260 | -7/Garrison | Triggered checkpoint 9296 | -7/Garrison | Triggered checkpoint 9307 | -7/Garrison | Destroyed 12 combat bots 9368 | -7/Garrison | Expanded RIF knowledge: Threat Obfuscation 9417 | -7/Garrison | Learned Factory security intel 9433 | -7/Garrison | Discovered new exit (range 10) 9490 | -7/Garrison | Triggered checkpoint 9524 | -7/Garrison | Expanded RIF knowledge: Zone Cloak 9546 | -7/Garrison | Triggered checkpoint 9638 | -7/Garrison | Garrison Relay disabled 9734 | -7/Garrison | Triggered checkpoint 9744 | -7/Garrison | Garrison Relay disabled 9808 | -7/Garrison | Lost 3 allies 9848 | -7/Garrison | Triggered checkpoint 9849 | -7/Garrison | Garrison Relay disabled 9931 | -7/Garrison | Build established: Botlord-Mutant 9936 | -7/Garrison | Discovered new exit (range 15) 10001 | -7/Garrison | Entered Factory 10001 | -6/Factory | Evolved 2 slots: Utility x1, Weapon x1 10118 | -6/Factory | Discovered new exit (range 15) 10162 | -6/Factory | Discovered new exit (range 7) 10172 | -6/Factory | Identified exit to Lower Caves 10547 | -6/Factory | Fabricated Adv. Component Analysis Suite (x1) 10595 | -6/Factory | Discovered new exit (range 8) 10683 | -6/Factory | Repaired Broken Remote Datajack 10977 | -6/Factory | Build established: Botlord-Tank 11058 | -6/Factory | Crushed by falling debris 11058 | -6/Factory | System corruption reached 10% 11089 | -6/Factory | Lost 3 parts (1n2u) 11176 | -6/Factory | Lost 4 parts (1p1n2w) 11443 | -6/Factory | Build established: Botlord-Mutant 11716 | -6/Factory | Discovered new exit (range 20) 11822 | -6/Factory | Entered another Factory area 11822 | -5/Factory | Accompanied by 2 allies 11822 | -5/Factory | Evolved 2 slots: Power x1, Propulsion x1 11835 | -5/Factory | Identified exit to DSF 11835 | -5/Factory | Entered DSF 11835 | -5/DSF | Accompanied by 2 allies 11881 | -5/DSF | Additional patrols routed to DSF 11943 | -5/DSF | Released all parts (7) 11968 | -5/DSF | Lost 8 parts (2n5u1w) 12010 | -5/DSF | Discovered new exit (range 16) 12030 | -5/DSF | Entered Factory 12030 | -4/Factory | Evolved 2 slots: Utility x2 12197 | -4/Factory | Lost 6 parts (2p1n1u2w) 12311 | -4/Factory | Lost 7 parts (1p3n2u1w) 12357 | -4/Factory | Lost 4 parts (2p1n1w) 12376 | -4/Factory | Core integrity fell below 50% 12387 | -4/Factory | Core integrity fell below 20% 12397 | -4/Factory | Destroyed by G-67 Veteran with Field Laser Last Messages --------------- Specialist reinforcements to area. 12373_ Penetrated by Slug. 12373_ Adv. VSS Leg destroyed. 12373_ Knocked back. 12375_ K-01 Serf cleans the Fabricator. 12377_ U-05 Engineer lays Concrete. 12379_ Penetrated by Slug. 12379_ U-05 Engineer lays Concrete. 12381_ Acquired 4 matter. 12383_ Penetrated by Slug. 12383_ Knocked back. 12385_ C-30 ARC bursts open, deploying its payload. 12385_ B-60 Warrior unfolds itself. 12385_ G-67 Veteran unfolds itself. 12386_ Adv. Cryofiber Web destroyed. 12386_ System corrupted by crushing effect (+1). 12388_ Graphene Brace destroyed. 12389_ Knocked back. 12390_ Penetrated by Slug. 12390_ Subcomponent Replicator disabled. Map ----- +----------------------------------------------------+ | ?????????????????????????????????????????????????? | | ?????????????????????????????????????????????????? | | ?????????????????????????????????????????????????? | | ?????????????????????????????????????????????????? | | ?????????????????????????????????????????????????? | | ?????????????????????????????????????????????????? | | ?????????????????????????????????????????????????? | | ?????????????????????????????????????????????????? | | ?????????????????????????????????????????????????? | | ?????????????????????????????????????????????????? | | ????????????????????????????? ???????????????? | | ???????????????????????????? ??????????????? | | ???????????????????????????? ??????????????? | | ????????????????????????????# #??????????????? | | ????????????????????????????# #??????????????? | | ????????????????????????????# #??????????????? | | ????????????????????????????# #????##########? | | ????????????????????????????# #????# #? | | ???????????????????########## #????# #? | | ???????????????????# # #????# #? | | ???????????????????# # #????# #? | | ???????????????????# # #????# #? | | ???????????????????# """ # "#????# #? | | ???????????????????#! """ g "%#????# #? | | ???????????????????# "" b# #????# #? | | ???????????????????# ""@ g g #??### #? | | ???????????????????# "" % # ####"##""#+##### | | ???????????????????#! # % % | | ???????????????????########## H ^ | | ????????????????????????????# %% | | ????????????????????????????# """ """ | | ????????????????????????????# """"" """"" | | ??????????????????????????########## """" """"" | | ??????????????????????????# """"" #^ | | ?????????????????????????## ""T"" # """ """ | | ?????????????????????????# # """"" """"" | | ?????????????????????????# #% """"" """"" | | ?????????????????????????# + | | ????????????????????????## # | | ????????????????????????# ! # ######### | | ????????????????????????## !# #???????? | | ?????????????????????#### ! # #???????? | | ?????????????????????#"""" # #+## #???????? | | ????????????????????##" # #???????? | | ????????????????????# " # #???????? | | ????????????????????# " # #???????? | | ????????????????????# # #???+#??? | | ????????????????????## # #### #### | | ?????????????????????# % # | | ???????????????????### # | +----------------------------------------------------+ Best States ------------- Heat Dissipation 64 Energy Generation 38 Energy Capacity 900 Matter Stores 300 Matter Capacity 300 Sight Range 16 Robot Scan Range 16 Terrain Scan Range 16 Terrain Scan Density 10 Base Temperature (-) 200 Armor Coverage 450 Resistance: KI 30 Resistance: TH 20 Core Shielding 20 Weapon Shielding 66 Phase Shifting 5 Evasion (%) 57 Recoil Reduction 3 Particle Charging 25 Offensive Hacking 10 Defensive Hacking 10 Relay Coupler Types 3 Relay Coupler Value 94 Item Schematics ----------------- Cld. Pulse Rifle | -8/Materials | Scanalyzed Datajack | -8/Materials | Hacked Robot Schematics ------------------ None Fabricated ------------ Adv. Component Analysis Suite | x1 | -6/Factory | Preloaded Alien Tech Used ----------------- None Achievements -------------- None Challenges ------------ None Game ------ Seed NeutrinoLargeShielding Manual? 0 Play Time 02:29:27 Cumulative 89.1 hours Start 2024.05.08 @ 20:50:26 End 2024.05.08 @ 23:37:54 Sessions 2 Manual Loads 0 Difficulty Rogue Special Mode None Game No. 69 Rogue 30 Adventurer 32 Explorer 7 Win Type - Total 0 Types 0/0/0/0/0/0/0/0/0 Lore% 26 Gallery% 58 Achievement% 42 Wizard Run 0 Options --------- Layout 1 ASCII 0 Keyboard 0 Movement Numpad Keybinds 0 Fullscreen 0 Font 16/Smallcaps Map View 64x42 Zoom Use 0% Tactical HUD 1 Map Filters NONE Filters NONE Steam 1 RUN: 8f151b0c-2cac-400d-8d93-4d22ec317f11